[Event "Live Chess"]
[Site "Chess.com"]
[Date "2024.06.02"]
[Round "-"]
[White "vincents82"]
[Black "upoe610"]
[Result "1/2-1/2"]
[WhiteElo "2009"]
[BlackElo "2117"]
[TimeControl "300"]
[EndTime "3:41:49 PDT"]
[Termination "Game drawn by repetition"]

1. e4 {[%clk 0:04:54.8]} 1... e5 {[%clk 0:04:59.4]} 2. Nf3 {[%clk 0:04:53.6]}
2... Nc6 {[%clk 0:04:58.7]} 3. Bb5 {[%clk 0:04:51.7]} 3... a6 {[%clk 0:04:57.3]}
4. Ba4 {[%clk 0:04:50.7]} 4... Nf6 {[%clk 0:04:56.3]} 5. d3 {[%clk 0:04:49.7]}
5... b5 {[%clk 0:04:55.1]} 6. Bb3 {[%clk 0:04:48.7]} 6... Bc5 {[%clk 0:04:54.8]}
7. c3 {[%clk 0:04:47.8]} 7... h6 {[%clk 0:04:51.4]} 8. O-O {[%clk 0:04:46.7]}
8... d6 {[%clk 0:04:50.5]} 9. a4 {[%clk 0:04:44.9]} 9... b4 {[%clk 0:04:45.9]}
10. d4 {[%clk 0:04:42.4]} 10... Bb6 {[%clk 0:04:44.8]} 11. a5 {[%clk 0:04:37.8]}
11... Ba7 {[%clk 0:04:42.9]} 12. Ba4 {[%clk 0:04:33.4]} 12... Bd7 {[%clk
0:04:41.5]} 13. Bxc6 {[%clk 0:04:31.4]} 13... Bxc6 {[%clk 0:04:40.5]} 14. dxe5
{[%clk 0:04:30.6]} 14... Nxe4 {[%clk 0:04:36.2]} 15. exd6 {[%clk 0:04:29.5]}
15... Qxd6 {[%clk 0:04:33.2]} 16. Qxd6 {[%clk 0:04:28.1]} 16... cxd6 {[%clk
0:04:32.3]} 17. Nd4 {[%clk 0:04:26.3]} 17... Bb7 {[%clk 0:04:29.5]} 18. Nd2
{[%clk 0:04:23.2]} 18... bxc3 {[%clk 0:04:27.3]} 19. Nxe4 {[%clk 0:04:21.1]}
19... Bxe4 {[%clk 0:04:20.5]} 20. bxc3 {[%clk 0:04:17.9]} 20... O-O {[%clk
0:04:18.7]} 21. Ba3 {[%clk 0:04:11.3]} 21... Rfc8 {[%clk 0:04:15.2]} 22. Bb4
{[%clk 0:04:05.9]} 22... Rc4 {[%clk 0:04:07.1]} 23. Nf3 {[%clk 0:03:58.3]} 23...
d5 {[%clk 0:04:03.3]} 24. Rad1 {[%clk 0:03:55]} 24... Rac8 {[%clk 0:03:58.6]}
25. Nd2 {[%clk 0:03:50.6]} 25... R4c7 {[%clk 0:03:51.9]} 26. Nxe4 {[%clk
0:03:49.7]} 26... dxe4 {[%clk 0:03:51.2]} 27. Rd6 {[%clk 0:03:48.4]} 27... Bc5
{[%clk 0:03:49.7]} 28. Rxa6 {[%clk 0:03:45.6]} 28... Bxb4 {[%clk 0:03:48.5]} 29.
cxb4 {[%clk 0:03:44.9]} 29... Rb7 {[%clk 0:03:47.9]} 30. Rb1 {[%clk 0:03:40.6]}
30... Rxb4 {[%clk 0:03:46.3]} 31. Rb6 {[%clk 0:03:37.7]} 31... Rxb6 {[%clk
0:03:38.7]} 32. axb6 {[%clk 0:03:36.6]} 32... Rb8 {[%clk 0:03:38]} 33. Kf1
{[%clk 0:03:34.4]} 33... Kf8 {[%clk 0:03:36.4]} 34. Ke2 {[%clk 0:03:34]} 34...
Ke7 {[%clk 0:03:35.9]} 35. Ke3 {[%clk 0:03:33.6]} 35... f5 {[%clk 0:03:35.1]}
36. Kd4 {[%clk 0:03:32.5]} 36... Kd6 {[%clk 0:03:34.2]} 37. b7 {[%clk
0:03:29.7]} 37... g6 {[%clk 0:03:29.9]} 38. Rb6+ {[%clk 0:03:24.2]} 38... Kc7
{[%clk 0:03:27.7]} 39. Rxg6 {[%clk 0:03:23]} 39... Kxb7 {[%clk 0:03:26.3]} 40.
Rxh6 {[%clk 0:03:21.3]} 40... Rd8+ {[%clk 0:03:22.7]} 41. Ke5 {[%clk 0:03:20.2]}
41... Rd2 {[%clk 0:03:21.5]} 42. Kxf5 {[%clk 0:03:10.8]} 42... Rxf2+ {[%clk
0:03:20.4]} 43. Kxe4 {[%clk 0:03:08.3]} 43... Rxg2 {[%clk 0:03:20.1]} 44. h4
{[%clk 0:03:02.3]} 44... Ra2 {[%clk 0:03:18.2]} 45. h5 {[%clk 0:02:55.6]} 45...
Ra4+ {[%clk 0:03:16.4]} 46. Ke5 {[%clk 0:02:54.8]} 46... Ra5+ {[%clk 0:03:15.6]}
47. Kf6 {[%clk 0:02:53.6]} 47... Kb8 {[%clk 0:03:13.7]} 48. Rh7 {[%clk
0:02:44.9]} 48... Ra6+ {[%clk 0:03:12.6]} 49. Kf7 {[%clk 0:02:42.8]} 49... Ra7+
{[%clk 0:03:11.9]} 50. Kg8 {[%clk 0:02:42]} 50... Ra5 {[%clk 0:03:09.5]} 51. h6
{[%clk 0:02:40.7]} 51... Ra6 {[%clk 0:03:02.6]} 52. Kg7 {[%clk 0:02:37.1]} 52...
Ra7+ {[%clk 0:03:01.7]} 53. Kh8 {[%clk 0:02:35.1]} 53... Ra6 {[%clk 0:03:01.1]}
54. Kg7 {[%clk 0:02:21]} 54... Ra7+ {[%clk 0:02:59.9]} 55. Kf6 {[%clk
0:02:20.4]} 55... Ra6+ {[%clk 0:02:58.8]} 56. Ke5 {[%clk 0:02:19.9]} 56... Ra5+
{[%clk 0:02:55.1]} 57. Kd6 {[%clk 0:02:18.4]} 57... Ra6+ {[%clk 0:02:53.7]} 58.
Kc5 {[%clk 0:02:17.7]} 58... Rg6 {[%clk 0:02:47.8]} 59. Rh8+ {[%clk 0:02:03.5]}
59... Kb7 {[%clk 0:02:45.9]} 60. h7 {[%clk 0:02:03.1]} 60... Rh6 {[%clk
0:02:44.9]} 61. Kd5 {[%clk 0:02:00]} 61... Rh1 {[%clk 0:02:43.3]} 62. Ke5 {[%clk
0:01:58.4]} 62... Ka7 {[%clk 0:02:41.4]} 63. Kf6 {[%clk 0:01:56]} 63... Kb7
{[%clk 0:02:34.1]} 64. Kg6 {[%clk 0:01:55.1]} 64... Rg1+ {[%clk 0:02:32.8]} 65.
Kf6 {[%clk 0:01:54.3]} 65... Rh1 {[%clk 0:02:31.8]} 66. Kg6 {[%clk 0:01:53.8]}
66... Rg1+ {[%clk 0:02:30.7]} 67. Kf6 {[%clk 0:01:53.4]} 67... Rh1 {[%clk
0:02:29.3]} 1/2-1/2

[Event "Live Chess"]
[Site "Chess.com"]
[Date "2024.06.02"]
[Round "-"]
[White "ACM42"]
[Black "JanMur7"]
[Result "0-1"]
[WhiteElo "2172"]
[BlackElo "2298"]
[TimeControl "300"]
[EndTime "3:41:53 PDT"]
[Termination "JanMur7 won on time"]

1. e4 {[%clk 0:04:57.8]} 1... g6 {[%clk 0:04:58.7]} 2. d4 {[%clk 0:04:54]} 2...
Bg7 {[%clk 0:04:57.2]} 3. Nf3 {[%clk 0:04:53]} 3... c5 {[%clk 0:04:55.6]} 4. c3
{[%clk 0:04:51.2]} 4... cxd4 {[%clk 0:04:54.6]} 5. Nxd4 {[%clk 0:04:48.9]} 5...
Nc6 {[%clk 0:04:49.2]} 6. Bc4 {[%clk 0:04:46.2]} 6... d6 {[%clk 0:04:37.2]} 7.
O-O {[%clk 0:04:43.6]} 7... Nf6 {[%clk 0:04:35.8]} 8. Nxc6 {[%clk 0:04:38.7]}
8... bxc6 {[%clk 0:04:33.3]} 9. Qe2 {[%clk 0:04:11.3]} 9... O-O {[%clk
0:04:17.6]} 10. e5 {[%clk 0:04:08.9]} 10... Ng4 {[%clk 0:04:08.1]} 11. exd6
{[%clk 0:03:45.7]} 11... exd6 {[%clk 0:04:08]} 12. h3 {[%clk 0:03:37.9]} 12...
Ne5 {[%clk 0:03:59.6]} 13. Bb3 {[%clk 0:03:33.1]} 13... a5 {[%clk 0:03:54.7]}
14. Nd2 {[%clk 0:03:31.2]} 14... Ba6 {[%clk 0:03:46.6]} 15. c4 {[%clk
0:03:30.2]} 15... d5 {[%clk 0:03:39.1]} 16. f4 {[%clk 0:03:28.8]} 16... Qb6+
{[%clk 0:03:32.6]} 17. Kh2 {[%clk 0:03:25.1]} 17... Nxc4 {[%clk 0:03:27.5]} 18.
Nxc4 {[%clk 0:03:22.1]} 18... dxc4 {[%clk 0:03:26.4]} 19. Bxc4 {[%clk
0:03:20.9]} 19... Rfe8 {[%clk 0:03:21.9]} 20. Qc2 {[%clk 0:03:15.4]} 20... Bxc4
{[%clk 0:03:14.7]} 21. Qxc4 {[%clk 0:03:14.2]} 21... Qb5 {[%clk 0:03:13.8]} 22.
Qxb5 {[%clk 0:03:07.7]} 22... cxb5 {[%clk 0:03:13.7]} 23. Rb1 {[%clk 0:03:04.4]}
23... Re2 {[%clk 0:03:08.4]} 24. Rd1 {[%clk 0:02:41.4]} 24... Rc8 {[%clk
0:02:57.7]} 25. Rd2 {[%clk 0:02:32.6]} 25... Rc2 {[%clk 0:02:49.6]} 26. Rxc2
{[%clk 0:01:57.3]} 26... Rxc2 {[%clk 0:02:48]} 27. a4 {[%clk 0:01:49.1]} 27...
bxa4 {[%clk 0:02:41.6]} 28. Ra1 {[%clk 0:01:41]} 28... a3 {[%clk 0:02:39.6]} 29.
Rxa3 {[%clk 0:01:32.8]} 29... Rxc1 {[%clk 0:02:36]} 30. Rxa5 {[%clk 0:01:32.1]}
30... Bxb2 {[%clk 0:02:33.4]} 31. f5 {[%clk 0:01:29]} 31... Kg7 {[%clk
0:02:26.8]} 32. fxg6 {[%clk 0:01:27.4]} 32... hxg6 {[%clk 0:02:26.3]} 33. Kg3
{[%clk 0:01:25.4]} 33... Rc3+ {[%clk 0:02:21.7]} 34. Kf4 {[%clk 0:01:21.2]}
34... Rc2 {[%clk 0:02:17]} 35. Kf3 {[%clk 0:01:19.7]} 35... Rc6 {[%clk
0:02:12.6]} 36. Ra7 {[%clk 0:01:18.5]} 36... Rf6+ {[%clk 0:02:10.7]} 37. Kg4
{[%clk 0:01:16.3]} 37... Be5 {[%clk 0:02:08.5]} 38. Ra5 {[%clk 0:01:13.1]} 38...
Rf4+ {[%clk 0:02:06.8]} 39. Kg3 {[%clk 0:01:06.9]} 39... Bc7 {[%clk 0:02:03.5]}
40. Ra7 {[%clk 0:00:55.5]} 40... Bb8 {[%clk 0:02:01]} 41. Ra8 {[%clk 0:00:52.9]}
41... Rb4+ {[%clk 0:01:55.5]} 42. Kf3 {[%clk 0:00:50.9]} 42... Rb3+ {[%clk
0:01:54.8]} 43. Kf2 {[%clk 0:00:48.4]} 43... Bg3+ {[%clk 0:01:53.9]} 44. Ke2
{[%clk 0:00:46.5]} 44... Be5 {[%clk 0:01:43.8]} 45. Ra5 {[%clk 0:00:44.2]} 45...
Bd4 {[%clk 0:01:38.1]} 46. Rd5 {[%clk 0:00:39]} 46... Rb2+ {[%clk 0:01:34.3]}
47. Kf3 {[%clk 0:00:36.2]} 47... Bf6 {[%clk 0:01:29.6]} 48. Kg3 {[%clk
0:00:35.2]} 48... Rb3+ {[%clk 0:01:20.8]} 49. Kf2 {[%clk 0:00:33.7]} 49... Bb2
{[%clk 0:01:20.2]} 50. Rd6 {[%clk 0:00:31.7]} 50... f5 {[%clk 0:01:18.3]} 51.
Rc6 {[%clk 0:00:28.7]} 51... Kh6 {[%clk 0:01:16.6]} 52. Rc8 {[%clk 0:00:26.6]}
52... Bd4+ {[%clk 0:01:14.7]} 53. Ke2 {[%clk 0:00:25]} 53... Kg5 {[%clk
0:01:11.1]} 54. Rc4 {[%clk 0:00:23.1]} 54... Rb2+ {[%clk 0:01:04.6]} 55. Kf3
{[%clk 0:00:21.7]} 55... Bb6 {[%clk 0:01:02.9]} 56. g4 {[%clk 0:00:18.6]} 56...
Rf2+ {[%clk 0:00:59.3]} 57. Kg3 {[%clk 0:00:17.3]} 57... f4+ {[%clk 0:00:58.8]}
58. Rxf4 {[%clk 0:00:16.6]} 58... Rg2+ {[%clk 0:00:23]} 59. Kf3 {[%clk
0:00:13.6]} 59... Rf2+ {[%clk 0:00:15.6]} 60. Kg3 {[%clk 0:00:12.5]} 60... Rxf4
{[%clk 0:00:15]} 61. h4+ {[%clk 0:00:10.4]} 61... Kf6 {[%clk 0:00:09.7]} 62.
Kxf4 {[%clk 0:00:10.3]} 62... Bc7+ {[%clk 0:00:08.4]} 63. Ke4 {[%clk 0:00:09.7]}
63... Ke6 {[%clk 0:00:06.6]} 64. Kd4 {[%clk 0:00:07.8]} 64... Bg3 {[%clk
0:00:05.1]} 65. h5 {[%clk 0:00:06.4]} 65... g5 {[%clk 0:00:04.7]} 66. Ke4 {[%clk
0:00:05.9]} 66... Be5 {[%clk 0:00:04.3]} 67. Kd3 {[%clk 0:00:03.6]} 67... Kd5
{[%clk 0:00:04.2]} 68. Ke3 {[%clk 0:00:02.9]} 68... Bf4+ {[%clk 0:00:03.4]} 69.
Kf3 {[%clk 0:00:01.3]} 69... Kd4 {[%clk 0:00:02.9]} 0-1

[Event "Live Chess"]
[Site "Chess.com"]
[Date "2024.06.02"]
[Round "-"]
[White "Cimon"]
[Black "Ferrarifan27"]
[Result "0-1"]
[WhiteElo "1837"]
[BlackElo "2149"]
[TimeControl "300"]
[EndTime "3:42:29 PDT"]
[Termination "Ferrarifan27 won by resignation"]

1. d4 {[%clk 0:04:57]} 1... Nf6 {[%clk 0:04:51.3]} 2. Nf3 {[%clk 0:04:55.4]}
2... d5 {[%clk 0:04:41.1]} 3. c4 {[%clk 0:04:53.4]} 3... e6 {[%clk 0:04:34.2]}
4. Nc3 {[%clk 0:04:51.5]} 4... Be7 {[%clk 0:04:27.1]} 5. g3 {[%clk 0:04:50]}
5... O-O {[%clk 0:04:25.6]} 6. Bg2 {[%clk 0:04:48.7]} 6... dxc4 {[%clk
0:04:24.2]} 7. Qa4 {[%clk 0:04:41.5]} 7... Bd7 {[%clk 0:04:20.2]} 8. Qxc4 {[%clk
0:04:40]} 8... Bc6 {[%clk 0:04:18.6]} 9. O-O {[%clk 0:04:35]} 9... Nbd7 {[%clk
0:04:09.3]} 10. Bf4 {[%clk 0:04:23.8]} 10... Nb6 {[%clk 0:04:07.9]} 11. Qb3
{[%clk 0:04:22.1]} 11... Nfd5 {[%clk 0:03:59.8]} 12. Nxd5 {[%clk 0:04:18]} 12...
Nxd5 {[%clk 0:03:53.5]} 13. Bd2 {[%clk 0:04:13.9]} 13... Bf6 {[%clk 0:03:45.5]}
14. Rfd1 {[%clk 0:04:00.3]} 14... Nb6 {[%clk 0:03:42]} 15. e3 {[%clk 0:03:57.3]}
15... Ba4 {[%clk 0:03:40.6]} 16. Qd3 {[%clk 0:03:42.5]} 16... Bxd1 {[%clk
0:03:39.2]} 17. Rxd1 {[%clk 0:03:41.3]} 17... c6 {[%clk 0:03:38.4]} 18. h4
{[%clk 0:03:36.3]} 18... Re8 {[%clk 0:03:37.1]} 19. Qb3 {[%clk 0:03:22.9]} 19...
Qe7 {[%clk 0:03:33.9]} 20. e4 {[%clk 0:03:17.6]} 20... g6 {[%clk 0:03:28.3]} 21.
Bb4 {[%clk 0:03:12.9]} 21... Qc7 {[%clk 0:03:26.1]} 22. a4 {[%clk 0:03:07.3]}
22... a5 {[%clk 0:03:21]} 23. Bc3 {[%clk 0:03:01.6]} 23... Red8 {[%clk 0:03:15]}
24. Ng5 {[%clk 0:02:47.7]} 24... h6 {[%clk 0:03:09.2]} 25. Nh3 {[%clk
0:02:40.3]} 25... Nd7 {[%clk 0:02:52.7]} 26. e5 {[%clk 0:02:27]} 26... Be7
{[%clk 0:02:50.5]} 27. Bd2 {[%clk 0:02:24.6]} 27... Bf8 {[%clk 0:02:38.8]} 28.
Qe3 {[%clk 0:01:49.3]} 28... Nb6 {[%clk 0:02:33]} 29. b3 {[%clk 0:01:47.4]}
29... Nd5 {[%clk 0:02:31.7]} 30. Qe4 {[%clk 0:01:41.6]} 30... Kh7 {[%clk
0:02:17.8]} 31. h5 {[%clk 0:01:39.2]} 31... Bg7 {[%clk 0:02:06.5]} 32. hxg6+
{[%clk 0:01:22.6]} 32... fxg6 {[%clk 0:02:05.5]} 33. Nf4 {[%clk 0:01:14]} 33...
Nxf4 {[%clk 0:02:04.4]} 34. Bxf4 {[%clk 0:01:09.7]} 34... Qf7 {[%clk 0:02:01.7]}
35. Bh3 {[%clk 0:01:06.2]} 35... Rf8 {[%clk 0:01:49.7]} 36. Kg2 {[%clk 0:00:59]}
36... h5 {[%clk 0:01:37.9]} 37. Rh1 {[%clk 0:00:52.5]} 37... Bh6 {[%clk
0:01:33.7]} 38. Bg4 {[%clk 0:00:40]} 38... Bxf4 {[%clk 0:01:25.8]} 39. Rxh5+
{[%clk 0:00:37.8]} 39... Bh6 {[%clk 0:01:24.6]} 40. Bxe6 {[%clk 0:00:24.5]}
40... Qxe6 {[%clk 0:01:12.9]} 0-1

[Event "Live Chess"]
[Site "Chess.com"]
[Date "2024.06.02"]
[Round "-"]
[White "Eva3337"]
[Black "JohanKjeldahl"]
[Result "0-1"]
[WhiteElo "1174"]
[BlackElo "1796"]
[TimeControl "300"]
[EndTime "3:42:38 PDT"]
[Termination "JohanKjeldahl won by resignation"]

1. e4 {[%clk 0:04:49.5]} 1... c5 {[%clk 0:04:57.4]} 2. Nf3 {[%clk 0:04:48.3]}
2... e6 {[%clk 0:04:56.2]} 3. c3 {[%clk 0:04:47.1]} 3... Nc6 {[%clk 0:04:53.2]}
4. d4 {[%clk 0:04:45.6]} 4... cxd4 {[%clk 0:04:52]} 5. cxd4 {[%clk 0:04:44.7]}
5... d6 {[%clk 0:04:48.3]} 6. Bb5 {[%clk 0:04:38.6]} 6... Bd7 {[%clk 0:04:45.4]}
7. d5 {[%clk 0:04:30.4]} 7... Ne5 {[%clk 0:04:42.2]} 8. Bxd7+ {[%clk 0:04:26.8]}
8... Nxd7 {[%clk 0:04:37.8]} 9. dxe6 {[%clk 0:04:19.4]} 9... fxe6 {[%clk
0:04:36.8]} 10. Bg5 {[%clk 0:04:05.3]} 10... Ngf6 {[%clk 0:04:32.7]} 11. O-O
{[%clk 0:04:00.9]} 11... Be7 {[%clk 0:04:30]} 12. Nc3 {[%clk 0:03:51.6]} 12...
Nc5 {[%clk 0:04:25.4]} 13. Re1 {[%clk 0:03:43.7]} 13... O-O {[%clk 0:04:23.7]}
14. e5 {[%clk 0:03:33.9]} 14... dxe5 {[%clk 0:04:18.1]} 15. Qxd8 {[%clk
0:03:28.8]} 15... Raxd8 {[%clk 0:04:15.4]} 16. Nxe5 {[%clk 0:03:28.7]} 16... h6
{[%clk 0:04:05.4]} 17. Be3 {[%clk 0:03:18.1]} 17... Nd3 {[%clk 0:03:53.8]} 18.
Re2 {[%clk 0:03:10.1]} 18... Nxe5 {[%clk 0:03:51.3]} 19. Bxa7 {[%clk 0:02:54.9]}
19... Neg4 {[%clk 0:03:47.1]} 20. Bb6 {[%clk 0:02:50.5]} 20... Rd6 {[%clk
0:03:25.7]} 21. b4 {[%clk 0:02:37.6]} 21... Rxb6 {[%clk 0:03:23.7]} 0-1

[Event "Live Chess"]
[Site "Chess.com"]
[Date "2024.06.02"]
[Round "-"]
[White "80Times"]
[Black "slava_ukr"]
[Result "0-1"]
[WhiteElo "1898"]
[BlackElo "2419"]
[TimeControl "300"]
[EndTime "3:42:39 PDT"]
[Termination "slava_ukr won by resignation"]

1. e4 {[%clk 0:04:57.8]} 1... c5 {[%clk 0:04:58]} 2. Nf3 {[%clk 0:04:56.8]} 2...
Nc6 {[%clk 0:04:57.1]} 3. Bb5 {[%clk 0:04:51.9]} 3... e6 {[%clk 0:04:52.2]} 4.
O-O {[%clk 0:04:50.7]} 4... d5 {[%clk 0:04:50]} 5. exd5 {[%clk 0:04:49.8]} 5...
exd5 {[%clk 0:04:48.6]} 6. Nc3 {[%clk 0:04:49.3]} 6... Nf6 {[%clk 0:04:47.4]} 7.
Re1+ {[%clk 0:04:48.7]} 7... Be7 {[%clk 0:04:46.6]} 8. d4 {[%clk 0:04:47.7]}
8... O-O {[%clk 0:04:44.7]} 9. dxc5 {[%clk 0:04:45.6]} 9... Bxc5 {[%clk
0:04:44.1]} 10. Bg5 {[%clk 0:04:43.6]} 10... Be6 {[%clk 0:04:36.1]} 11. Bd3
{[%clk 0:04:29.7]} 11... h6 {[%clk 0:04:18.1]} 12. Bh4 {[%clk 0:04:19.3]} 12...
Be7 {[%clk 0:04:16.7]} 13. Ne2 {[%clk 0:03:40.7]} 13... Ne4 {[%clk 0:04:13.7]}
14. Bxe7 {[%clk 0:03:39.4]} 14... Qxe7 {[%clk 0:04:12.9]} 15. c3 {[%clk
0:03:38.6]} 15... Rad8 {[%clk 0:04:04.7]} 16. Ned4 {[%clk 0:03:37.6]} 16... Qf6
{[%clk 0:04:00.5]} 17. Bxe4 {[%clk 0:03:32.1]} 17... dxe4 {[%clk 0:03:57.9]} 18.
Rxe4 {[%clk 0:03:31.4]} 18... Bd5 {[%clk 0:03:54.7]} 19. Rg4 {[%clk 0:03:25.5]}
19... Rfe8 {[%clk 0:03:22]} 20. Rg3 {[%clk 0:03:19.4]} 20... Ne5 {[%clk
0:03:11.9]} 21. Nxe5 {[%clk 0:03:15.3]} 21... Qxe5 {[%clk 0:03:06.5]} 22. h3
{[%clk 0:03:12.6]} 22... Rd6 {[%clk 0:02:47.8]} 23. Qg4 {[%clk 0:02:53.3]} 23...
Rg6 {[%clk 0:02:44.4]} 24. Qd7 {[%clk 0:02:52.2]} 24... Rxg3 {[%clk 0:02:37.9]}
25. fxg3 {[%clk 0:02:45.6]} 25... Re7 {[%clk 0:02:08.7]} 26. Qd8+ {[%clk
0:02:41.8]} 26... Kh7 {[%clk 0:02:07.6]} 27. Rf1 {[%clk 0:02:36.3]} 27... Qe4
{[%clk 0:02:00]} 28. Rf3 {[%clk 0:02:19.3]} 28... Qe1+ {[%clk 0:01:54.1]} 29.
Rf1 {[%clk 0:02:18.1]} 29... Qe4 {[%clk 0:01:44.2]} 30. Nf3 {[%clk 0:02:09.1]}
30... Re8 {[%clk 0:01:37.7]} 31. Re1 {[%clk 0:02:05.8]} 31... Qxe1+ {[%clk
0:01:34.8]} 32. Nxe1 {[%clk 0:02:04.7]} 32... Rxd8 {[%clk 0:01:34.1]} 0-1

[Event "Live Chess"]
[Site "Chess.com"]
[Date "2024.06.02"]
[Round "-"]
[White "Bodhanas"]
[Black "Dhaydon19"]
[Result "0-1"]
[WhiteElo "2304"]
[BlackElo "2634"]
[TimeControl "300"]
[EndTime "3:42:39 PDT"]
[Termination "Dhaydon19 won by resignation"]

1. d4 {[%clk 0:04:57.4]} 1... c6 {[%clk 0:04:59.4]} 2. Nf3 {[%clk 0:04:55.4]}
2... d5 {[%clk 0:04:59.1]} 3. c3 {[%clk 0:04:53.7]} 3... Bg4 {[%clk 0:04:58.1]}
4. h3 {[%clk 0:04:52.3]} 4... Bxf3 {[%clk 0:04:57.3]} 5. exf3 {[%clk 0:04:51.7]}
5... e6 {[%clk 0:04:57]} 6. Bd3 {[%clk 0:04:51]} 6... Bd6 {[%clk 0:04:56.7]} 7.
O-O {[%clk 0:04:50]} 7... Nf6 {[%clk 0:04:56.3]} 8. Re1 {[%clk 0:04:49.2]} 8...
Bc7 {[%clk 0:04:54.7]} 9. Nd2 {[%clk 0:04:47.5]} 9... Nbd7 {[%clk 0:04:53.9]}
10. Nf1 {[%clk 0:04:46.8]} 10... Nf8 {[%clk 0:04:53.5]} 11. Be3 {[%clk
0:04:45.5]} 11... Ng6 {[%clk 0:04:52.9]} 12. Qd2 {[%clk 0:04:45]} 12... Qd6
{[%clk 0:04:52]} 13. c4 {[%clk 0:04:42.2]} 13... dxc4 {[%clk 0:04:49.5]} 14.
Bxc4 {[%clk 0:04:41.4]} 14... Nd5 {[%clk 0:04:48.5]} 15. Bxd5 {[%clk 0:04:40.3]}
15... Qxd5 {[%clk 0:04:47.2]} 16. Rac1 {[%clk 0:04:37.7]} 16... Ba5 {[%clk
0:04:45]} 17. b4 {[%clk 0:04:36.1]} 17... Bb6 {[%clk 0:04:44.4]} 18. a4 {[%clk
0:04:34.9]} 18... a5 {[%clk 0:04:40.2]} 19. Red1 {[%clk 0:04:29.9]} 19... O-O
{[%clk 0:04:37.9]} 20. bxa5 {[%clk 0:04:26.1]} 20... Bxa5 {[%clk 0:04:36.7]} 21.
Qb2 {[%clk 0:04:24.9]} 21... Qd7 {[%clk 0:04:32.5]} 22. Ng3 {[%clk 0:04:19.9]}
22... Ne7 {[%clk 0:04:29.6]} 23. Ne4 {[%clk 0:04:18.2]} 23... b6 {[%clk
0:04:26.8]} 24. Nd2 {[%clk 0:04:07.5]} 24... Bxd2 {[%clk 0:04:24.1]} 25. Rxd2
{[%clk 0:04:05.3]} 25... Nd5 {[%clk 0:04:23.6]} 26. Qb3 {[%clk 0:04:00.7]} 26...
b5 {[%clk 0:04:14.4]} 27. axb5 {[%clk 0:03:57.1]} 27... cxb5 {[%clk 0:04:13.5]}
28. Rc5 {[%clk 0:03:50]} 28... b4 {[%clk 0:04:12]} 29. Rdc2 {[%clk 0:03:46.3]}
29... Ra3 {[%clk 0:04:10.8]} 30. Qb2 {[%clk 0:03:39.7]} 30... Rc3 {[%clk
0:04:08.7]} 31. R2xc3 {[%clk 0:03:36.8]} 31... bxc3 {[%clk 0:04:07.2]} 32. Qc2
{[%clk 0:03:35.7]} 32... Rb8 {[%clk 0:04:01.6]} 33. Kh2 {[%clk 0:03:32.5]} 33...
h6 {[%clk 0:03:57.1]} 34. g3 {[%clk 0:03:30.8]} 34... Nxe3 {[%clk 0:03:52.3]}
35. fxe3 {[%clk 0:03:29.5]} 35... Rb2 {[%clk 0:03:50.4]} 36. Rxc3 {[%clk
0:03:28.2]} 36... Rxc2+ {[%clk 0:03:49.4]} 37. Rxc2 {[%clk 0:03:27.8]} 37... Qa4
{[%clk 0:03:48.2]} 38. Rf2 {[%clk 0:03:21.9]} 38... Qd1 {[%clk 0:03:46.3]} 39.
Kg2 {[%clk 0:03:19.7]} 39... Qd3 {[%clk 0:03:44.1]} 40. e4 {[%clk 0:03:18.4]}
40... Qxd4 {[%clk 0:03:43.2]} 41. g4 {[%clk 0:03:17.5]} 41... g5 {[%clk
0:03:40.9]} 0-1

[Event "Live Chess"]
[Site "Chess.com"]
[Date "2024.06.02"]
[Round "-"]
[White "AlexanderMatlak"]
[Black "Duke_of_Bebington"]
[Result "1-0"]
[WhiteElo "2392"]
[BlackElo "1654"]
[TimeControl "300"]
[EndTime "3:42:49 PDT"]
[Termination "AlexanderMatlak won by resignation"]

1. c4 {[%clk 0:04:56.5]} 1... c6 {[%clk 0:04:58.8]} 2. Nf3 {[%clk 0:04:54.2]}
2... d5 {[%clk 0:04:56.7]} 3. g3 {[%clk 0:04:53.6]} 3... Bf5 {[%clk 0:04:54.1]}
4. Bg2 {[%clk 0:04:52.3]} 4... e6 {[%clk 0:04:53.5]} 5. O-O {[%clk 0:04:48]}
5... Nf6 {[%clk 0:04:52.4]} 6. d3 {[%clk 0:04:46.3]} 6... h6 {[%clk 0:04:30.6]}
7. a3 {[%clk 0:04:45]} 7... Be7 {[%clk 0:04:22.7]} 8. b4 {[%clk 0:04:43]} 8...
Kf8 {[%clk 0:04:16.5]} 9. Bb2 {[%clk 0:04:42.1]} 9... Nbd7 {[%clk 0:04:13.7]}
10. Nbd2 {[%clk 0:04:41.3]} 10... Bd6 {[%clk 0:04:06.4]} 11. Re1 {[%clk
0:04:39.2]} 11... g5 {[%clk 0:04:05.5]} 12. e4 {[%clk 0:04:38.1]} 12... dxe4
{[%clk 0:04:01]} 13. dxe4 {[%clk 0:04:38]} 13... Bg6 {[%clk 0:03:59.3]} 14. e5
{[%clk 0:04:37.2]} 1-0